bitfinex/quotes_SOLUSD_20250416
["timestamp","ask_amount","ask_price","bid_price","bid_amount"]
[1744829892394,2.5968449,128.61,128.59,7.77643693]
[1744829892590,2.5968449,128.61,128.6,34.83074702]
[1744829893798,2.5968449,128.61,128.6,42.60679678]
[1744829894106,2.5968449,128.61,128.6,68.60679678]
[1744829895706,2.5968449,128.61,128.6,70.12559678]
[1744829895897,90.57158181,128.68,128.63,26.0]
[1744829896089,7.76997977,128.71,128.67,34.83074702]
[1744829896291,7.76997977,128.71,128.69,34.83074702]
[1744829898309,7.76904904,128.72,128.7,34.83074702]
[1744829898699,10.53087224,128.73,128.7,34.83074702]
[1744829899414,10.53087224,128.73,128.69,34.83074702]
[1744829899589,45.36161926,128.73,128.68,34.83074702]
[1744829900410,34.83074702,128.69,128.63,6.01]
[1744829900592,34.83074702,128.64,128.59,41.36344703]
[1744829900799,34.83074702,128.64,128.6,30.0]
[1744829901017,34.83074702,128.65,128.6,64.83074702]
[1744829901421,34.83074702,128.65,128.6,34.83074702]
[1744829901422,34.83074702,128.64,128.6,34.83074702]
[1744829901724,34.83074702,128.64,128.59,6.53270001]
[1744829901901,7.77353114,128.65,128.59,1e-08]
[1744829901902,34.83074702,128.63,128.59,1e-08]
[1744829902099,34.83074702,128.64,128.59,34.83074703]
[1744829902421,34.83074702,128.64,128.6,34.83074702]
[1744829902589,34.83074702,128.63,128.59,1e-08]
[1744829903416,42.60558763,128.62,128.59,1e-08]
[1744829903715,34.83074702,128.6,128.59,1e-08]
[1744829904023,27.21194214,128.62,128.59,1e-08]
[1744829904193,34.83074702,128.61,128.59,1e-08]
[1744829904388,34.83074702,128.6,128.59,1e-08]
[1744829904698,34.83074702,128.61,128.59,1e-08]
[1744829905021,7.77438256,128.63,128.59,34.83074703]
[1744829905212,7.77438256,128.63,128.6,34.83074702]
[1744829905511,34.83074702,128.64,128.59,1e-08]
[1744829905820,34.83074702,128.64,128.6,34.83074702]
[1744829906616,42.60377461,128.65,128.6,34.83074702]
[1744829907211,34.83074702,128.64,128.59,1e-08]
[1744829907414,7.77423618,128.63,128.6,34.83074702]
[1744829908015,7.77423618,128.63,128.59,34.83074703]
[1744829908324,7.77423618,128.63,128.6,34.83074702]
[1744829908514,7.77423618,128.63,128.61,34.83074702]
[1744829908818,7.77423618,128.63,128.6,34.83074702]
[1744829910016,7.77388467,128.64,128.6,34.83074702]
[1744829910207,7.77242344,128.66,128.62,34.83074702]
[1744829910713,42.60317046,128.66,128.61,34.83074702]
[1744829911014,22.54,128.68,128.59,35.43656475]
[1744829911217,22.54,128.68,128.67,34.83074702]
[1744829911426,82.8,128.69,128.67,34.83074702]
[1744829911797,7.77000777,128.7,128.67,34.83074702]
[1744829912109,27.19502719,128.7,128.66,34.83074702]
[1744829912413,34.83074702,128.69,128.64,34.83074702]
[1744829912617,34.83074702,128.68,128.64,34.83074702]
[1744829912799,34.83074702,128.68,128.63,34.83074702]
[1744829913220,34.83074702,128.68,128.64,34.83074702]
[1744829913524,34.83074702,128.68,128.6,33.77604976]
[1744829913717,7.77181938,128.67,128.63,34.83074702]
[1744829914123,42.6025664,128.67,128.63,34.83074702]
[1744829914321,42.6025664,128.67,128.62,34.83074702]
[1744829914727,42.6025664,128.67,128.63,34.83074702]
[1744829916326,7.77181938,128.67,128.63,34.83074702]
[1744829916633,42.6025664,128.67,128.63,34.83074702]
[1744829917001,7.77181938,128.67,128.63,34.83074702]
[1744829917324,34.83074702,128.66,128.59,1e-08]
[1744829917625,82.8,128.66,128.63,34.83074702]
[1744829918018,90.57256262,128.66,128.63,34.83074702]
[1744829918729,82.8,128.66,128.64,34.83074702]
[1744829918928,117.63074702,128.65,128.59,1e-08]
[1744829919224,34.83074702,128.63,128.59,34.83074703]
[1744829919533,34.83074702,128.64,128.59,34.83074703]
[1744829919698,117.63074702,128.65,128.6,34.83074702]
[1744829920030,34.83074702,128.64,128.59,34.83074703]
[1744829920213,7.77423618,128.63,128.59,34.83074703]
[1744829921232,42.6049832,128.63,128.59,1e-08]
[1744829921428,34.83074702,128.61,128.59,1e-08]
[1744829921731,34.83074702,128.6,128.59,1e-08]
[1744829921920,34.83074702,128.61,128.59,1e-08]
[1744829922131,34.83074702,128.62,128.59,1e-08]
[1744829922432,7.77510415,128.62,128.59,1e-08]
[1744829922805,42.60585117,128.62,128.59,1e-08]
[1744829923003,7.77510415,128.62,128.59,1e-08]
[1744829923415,42.60585117,128.62,128.59,1e-08]
[1744829924225,34.83074702,128.61,128.59,1e-08]
[1744829924421,42.60679678,128.6,128.59,1e-08]
[1744829925902,61.25644564,128.6,128.59,1e-08]
[1744829926438,104.1667094,128.6,128.59,1e-08]
[1744829926926,69.33596238,128.6,128.59,1e-08]
[1744829927146,62.83544564,128.6,128.59,1e-08]
[1744829927928,44.18579678,128.6,128.59,1e-08]
[1744829929920,97.66619266,128.6,128.59,1e-08]
[1744829930229,63.26193035,128.6,128.59,1e-08]
[1744829930710,98.09267737,128.6,128.59,1e-08]
[1744829930916,0.42648471,128.59,128.55,0.063]
[1744829931213,34.83074702,128.56,128.55,1e-08]
[1744829931542,57.33074702,128.56,128.55,1e-08]
[1744829931932,22.5,128.56,128.55,1e-08]
[1744829932152,57.33074702,128.56,128.55,1e-08]
[1744829933140,30.27846919,128.56,128.55,1e-08]
[1744829933332,65.10921621,128.56,128.55,1e-08]
[1744829936540,30.27846919,128.56,128.55,1e-08]
[1744829936725,7.77846919,128.56,128.55,1e-08]
[1744829938019,42.60921621,128.56,128.55,1e-08]
[1744829939721,7.77846919,128.56,128.55,1e-08]
[1744829939925,42.60921621,128.56,128.55,1e-08]
[1744829941639,61.25886507,128.56,128.55,1e-08]
[1744829943837,61.25886507,128.56,128.48,0.063]
[1744829943838,34.83074702,128.51,128.48,0.063]
[1744829944444,34.83074702,128.49,128.48,0.063]
[1744829945221,42.61345384,128.49,128.48,0.063]
[1744829945545,7.78270682,128.49,128.48,0.063]
[1744829945851,42.61163715,128.52,128.48,0.063]
[1744829946338,42.61163715,128.52,128.48,34.89374702]
[1744829946533,7.78089013,128.52,128.48,34.89374702]
[1744829946920,42.61163715,128.52,128.48,34.89374702]
[1744829947135,62.06386248,128.52,128.48,0.063]
[1744829947329,34.83074702,128.5,128.48,0.063]
[1744829948018,34.83074702,128.49,128.48,0.063]
[1744829948750,42.61345384,128.49,128.48,0.063]
[1744829949123,61.68958741,128.49,128.48,1e-08]
[1744829949655,45.07613357,128.47,128.44,0.063]
[1744829949850,22.44,128.48,128.44,0.063]
[1744829950023,53.48039588,128.45,128.44,0.063]
[1744829950219,53.90688059,128.45,128.44,0.063]
[1744829950725,61.26552628,128.45,128.44,0.063]
[1744829951132,61.69201099,128.45,128.44,0.063]
[1744829951739,65.66195804,128.45,128.44,0.063]
[1744829952140,65.66195804,128.45,128.44,1e-08]
[1744829952650,0.42648471,128.44,128.42,1e-08]
[1744829952847,61.69322334,128.43,128.42,1e-08]
[1744829953147,144.49322334,128.43,128.42,1e-08]
[1744829953351,144.06673863,128.43,128.42,1e-08]
[1744829953651,90.58634275,128.43,128.42,1e-08]
[1744829954035,82.8,128.43,128.42,1e-08]
[1744829955353,90.58634275,128.43,128.42,1e-08]
[1744829956732,82.8,128.43,128.42,1e-08]
[1744829957246,90.58634275,128.43,128.42,1e-08]
[1744829958435,82.8,128.46,128.42,34.83074703]
[1744829958655,90.58467738,128.46,128.42,34.83074703]
[1744829959152,90.58467738,128.46,128.43,34.83074702]
[1744829959454,82.8,128.46,128.44,34.83074702]
[1744829959629,82.8,128.46,128.45,34.83074702]
[1744829959832,82.8,128.49,128.45,34.83074702]
[1744829960036,82.8,128.49,128.46,34.83074702]
[1744829960339,82.8,128.49,128.45,34.83074702]
[1744829960642,90.58280653,128.49,128.46,34.83074702]
[1744829961038,90.58280653,128.49,128.47,34.83074702]
[1744829961039,82.8,128.49,128.47,34.83074702]
[1744829961361,90.58277257,128.49,128.47,34.83074702]
[1744829961832,82.8,128.49,128.47,34.83074702]
[1744829962032,90.58275723,128.49,128.47,34.83074702]
[1744829962544,90.58275723,128.49,128.46,34.83074702]
[1744829963134,90.58275723,128.49,128.44,7.78553454]
[1744829963332,90.58275723,128.49,128.46,34.83074702]
[1744829963567,90.5827324,128.49,128.47,34.83074702]
[1744829963857,82.8,128.49,128.46,34.83074702]
[1744829964061,82.8,128.49,128.47,34.83074702]
[1744829964231,82.8,128.49,128.48,34.83074702]
[1744829964438,82.8,128.49,128.47,34.83074702]
[1744829964835,82.8,128.49,128.48,34.83074702]
[1744829965636,90.61100707,128.52,128.48,34.83074702]
[1744829965857,82.83,128.52,128.5,34.83074702]
[1744829966767,82.83,128.52,128.51,34.83074702]
[1744829967135,82.83,128.52,128.5,34.83074702]
[1744829967654,82.83,128.52,128.51,34.83074702]
[1744829968267,82.83,128.52,128.5,6.6334]
[1744829968444,82.83,128.52,128.5,41.46414702]
[1744829969246,82.83,128.52,128.51,34.83074702]
[1744829970774,82.83,128.52,128.5,6.6334]
[1744829970959,82.83,128.52,128.5,41.46414702]
[1744829971465,82.83,128.52,128.51,34.83074702]
[1744829971937,82.83,128.52,128.5,6.6334]
[1744829972141,34.83074702,128.51,128.47,41.20544702]
[1744829972357,125.44174181,128.52,128.47,41.20544702]
[1744829973266,82.83,128.52,128.5,34.83074702]
[1744829973569,82.83,128.52,128.51,34.83074702]
[1744829974077,82.83,128.52,128.49,34.83074702]
[1744829974580,82.83,128.52,128.51,34.83074702]
[1744829974949,82.83,128.52,128.5,34.83074702]
[1744829975767,82.83,128.52,128.51,34.83074702]
[1744829976454,82.83,128.52,128.5,34.83074702]
[1744829976961,82.83,128.52,128.49,60.83074702]
[1744829977771,82.83,128.52,128.49,68.61320304]
[1744829978163,82.83,128.52,128.5,34.83074702]
[1744829978676,82.83,128.52,128.49,60.83074702]
[1744829978857,82.83,128.52,128.49,68.613411]
[1744829980066,90.61131149,128.52,128.46,1.581]
[1744829980273,34.83074702,128.49,128.44,6.1442]
[1744829980452,34.83074702,128.48,128.44,6.1442]
[1744829980769,34.83074702,128.49,128.44,48.7606739]
[1744829980955,34.83074702,128.48,128.44,40.97494702]
[1744829981356,34.83074702,128.48,128.44,6.1442]
[1744829981555,34.83074702,128.48,128.44,40.97494702]
[1744829981762,34.83074702,128.49,128.45,34.83074702]
[1744829982464,42.61354938,128.49,128.44,40.97494702]
[1744829982850,42.61354938,128.49,128.44,48.7605138]
[1744829983046,117.63074702,128.48,128.43,35.30868433]
[1744829983258,117.63074702,128.48,128.44,34.83074702]
[1744829983259,82.8,128.48,128.44,34.83074702]
[1744829983773,82.8,128.48,128.45,34.83074702]
[1744829985176,34.83074702,128.47,128.43,26.0]
[1744829985470,125.41410961,128.48,128.43,34.83074702]
[1744829985670,117.63074702,128.47,128.42,1e-08]
[1744829985848,117.63074702,128.47,128.43,34.83074702]
[1744829986048,125.41466639,128.47,128.42,42.61752761]
[1744829986774,82.8,128.47,128.44,34.83074702]
[1744829987078,90.5839986,128.47,128.43,34.83074702]
[1744829987456,125.41474562,128.47,128.43,34.83074702]
[1744829987854,90.5839986,128.47,128.43,34.83074702]
[1744829988077,82.8,128.47,128.44,34.83074702]
[1744829988376,82.8,128.5,128.46,34.83074702]
[1744829988577,82.8,128.5,128.47,34.83074702]
[1744829988753,82.8,128.5,128.48,34.83074702]
[1744829989178,82.8,128.5,128.49,34.83074702]
[1744829989571,82.8,128.5,128.48,34.83074702]
[1744829989983,82.8,128.5,128.49,34.83074702]
[1744829990772,0.03,128.52,128.49,34.83074702]
[1744829991077,0.03,128.52,128.5,34.83074702]
[1744829991953,0.03,128.52,128.5,42.61277322]
[1744829992157,0.03,128.52,128.51,34.83074702]
[1744829992366,0.03,128.52,128.48,7.78313207]
[1744829992555,0.03,128.52,128.49,34.83074702]
[1744829992760,0.03,128.52,128.51,34.83074702]
[1744829993974,0.03,128.52,128.51,42.61224262]
[1744829994177,82.8,128.56,128.52,1.6587]
[1744829994362,7.80732247,128.58,128.55,34.83074702]
[1744829994566,90.60732247,128.58,128.55,34.83074702]
[1744829994865,90.60737902,128.58,128.55,34.83074702]
[1744829995068,90.60737902,128.58,128.54,34.83074702]
[1744829995384,82.83,128.58,128.56,21.7795101]
[1744829995957,82.83,128.58,128.57,21.7795101]
[1744829996164,82.83,128.58,128.55,21.7795101]
[1744829998379,90.60730925,128.58,128.54,21.7795101]
[1744829999190,82.83,128.58,128.54,21.7795101]
[1744829999576,90.60742439,128.58,128.54,21.7795101]
[1744830000291,104.5795101,128.57,128.52,21.7795101]
[1744830000488,82.8,128.57,128.54,21.7795101]
[1744830000689,0.03,128.58,128.56,21.7795101]
[1744830000891,0.03,128.58,128.57,21.7795101]
[1744830001268,0.03,128.58,128.57,27.9171101]
[1744830001590,0.03,128.58,128.57,76.12310491]
[1744830001886,0.03,128.59,128.57,75.6966202]
[1744830002201,0.03,128.59,128.58,51.33627949]
[1744830002367,0.03,128.59,128.58,51.7627642]
[1744830002787,0.03,128.59,128.58,51.47844106]
[1744830002989,0.03,128.59,128.58,51.7627642]
[1744830003377,0.03,128.62,128.61,26.0]
[1744830003597,0.03,128.62,128.61,47.7795101]
[1744830004197,0.03,128.62,128.61,55.55495524]
[1744830004708,0.03,128.62,128.6,29.55512715]
[1744830005098,0.03,128.62,128.59,55.55589899]
[1744830005300,0.03,128.62,128.55,1.6186]
[1744830005605,21.7795101,128.59,128.56,30.0]
[1744830005784,82.8,128.61,128.56,51.7795101]
[1744830005989,0.03,128.62,128.59,47.7795101]
[1744830006310,0.03,128.62,128.61,21.7795101]
[1744830006800,21.8095101,128.62,128.57,26.0]
[1744830007113,21.8095101,128.62,128.57,47.7795101]
[1744830007316,21.8095101,128.62,128.58,21.7795101]
[1744830007803,21.8095101,128.62,128.57,47.7795101]
[1744830008016,43.5590202,128.58,128.51,8.1399]
[1744830008306,7.77846919,128.56,128.52,30.0]
[1744830008507,21.7795101,128.55,128.52,30.0]
[1744830008807,21.7795101,128.55,128.52,37.78082807]
[1744830009105,7.77846919,128.56,128.52,30.0]
[1744830009310,21.7795101,128.55,128.51,7.78105996]
[1744830010508,21.7795101,128.6,128.54,21.7795101]
[1744830010695,21.7795101,128.59,128.54,21.7795101]
[1744830011084,21.7795101,128.56,128.52,26.0]
[1744830011297,34.86175911,128.55,128.52,26.0]
[1744830011606,34.86175911,128.56,128.52,26.0]
[1744830011793,34.86175911,128.55,128.51,7.78105996]
[1744830012107,34.86175911,128.55,128.51,42.64281907]
[1744830012610,34.86175911,128.55,128.5,60.86175911]
[1744830012806,34.86175911,128.55,128.51,34.86175911]
[1744830013888,90.57736653,128.58,128.53,34.86175911]
[1744830014185,82.8,128.58,128.56,34.86175911]
[1744830014514,82.8,128.61,128.57,34.86175911]
[1744830014686,90.57556345,128.61,128.57,34.86175911]
[1744830014881,125.43732256,128.61,128.54,7.6375]
[1744830015303,34.86175911,128.6,128.55,34.86175911]
[1744830015512,7.77665448,128.59,128.56,34.86175911]
[1744830015715,117.66175911,128.61,128.56,34.86175911]
[1744830016597,34.86175911,128.6,128.56,34.86175911]
[1744830017519,42.63802892,128.6,128.56,34.86175911]
[1744830018210,7.77626981,128.6,128.56,34.86175911]
[1744830018408,42.63802892,128.6,128.56,34.86175911]
[1744830018813,34.86175911,128.57,128.51,6.474]
[1744830018983,34.86175911,128.55,128.51,41.33575911]
[1744830019189,82.8,128.59,128.52,34.86175911]
[1744830019389,34.86175911,128.58,128.53,34.86175911]
[1744830019606,34.86175911,128.57,128.53,34.86175911]
[1744830019803,34.86175911,128.57,128.52,34.86175911]
[1744830020512,82.8,128.59,128.55,34.86175911]
[1744830020696,117.69175911,128.62,128.57,34.86175911]
[1744830020889,117.69175911,128.62,128.52,34.86175911]
[1744830020890,34.86175911,128.61,128.55,34.86175911]
[1744830021091,34.86175911,128.59,128.54,26.0]
[1744830021306,117.66175911,128.58,128.54,26.0]
[1744830021510,7.77786419,128.57,128.54,26.0]
[1744830021811,7.77786419,128.57,128.54,60.86175911]
[1744830021990,125.43928026,128.58,128.54,60.86175911]
[1744830023319,125.43928026,128.58,128.53,34.86175911]
[1744830023498,90.57752115,128.58,128.54,34.86175911]
[1744830024918,19.10613357,128.62,128.57,34.86175911]
[1744830024919,82.8,128.61,128.57,34.86175911]
[1744830025120,0.03,128.62,128.59,34.86175911]
[1744830025421,0.03,128.62,128.57,8.0304]
[1744830025622,7.80484061,128.62,128.59,34.86175911]
[1744830025823,7.80484061,128.62,128.58,34.86175911]
[1744830026500,7.80484061,128.62,128.59,34.86175911]
[1744830026700,7.80484061,128.62,128.58,34.86175911]
[1744830029304,42.66659972,128.62,128.57,41.37085911]
[1744830029817,34.86175911,128.61,128.54,1.5213]
[1744830030124,34.86175911,128.58,128.53,63.63745911]
[1744830030309,34.86175911,128.58,128.54,30.0]
[1744830030506,117.66175911,128.59,128.55,34.86175911]
[1744830031301,82.8,128.59,128.58,21.77616087]
[1744830031511,7.77572359,128.61,128.58,21.77616087]
[1744830031829,7.80504516,128.62,128.58,21.77616087]
[1744830032826,29.58120603,128.62,128.58,21.77616087]
[1744830033214,7.80504516,128.62,128.58,21.77616087]
[1744830034320,29.58120603,128.62,128.57,21.77616087]
[1744830035232,21.77616087,128.6,128.55,55.55500391]
[1744830035610,104.57616087,128.61,128.56,21.77616087]
[1744830036332,90.57577629,128.61,128.57,21.77616087]
[1744830036714,0.03,128.62,128.6,21.77616087]
[1744830036911,0.03,128.62,128.61,21.77616087]
[1744830037214,0.03,128.64,128.63,43.55232174]
[1744830037534,0.03,128.64,128.63,23.37876087]
[1744830038328,0.03,128.64,128.63,31.15299705]
[1744830039835,0.03,128.67,128.63,31.15299705]
[1744830040010,0.03,128.67,128.65,21.77616087]
[1744830040214,0.03,128.67,128.66,28.83984558]
[1744830040411,0.03,128.67,128.66,73.48949444]
[1744830040906,0.03,128.67,128.66,54.83984558]
[1744830041335,0.03,128.67,128.66,62.61226902]
[1744830043042,0.03,128.67,128.66,54.41336087]
[1744830043243,0.03,128.67,128.66,62.18578431]
[1744830045244,0.03,128.68,128.67,19.07613357]
[1744830045432,0.03,128.69,128.68,22.20264558]
[1744830045946,0.03,128.69,128.66,62.58962344]
[1744830046133,0.03,128.69,128.68,21.77616087]
[1744830046844,0.03,128.69,128.68,29.54737628]
[1744830047942,0.03,128.71,128.69,0.28432314]
[1744830048128,0.03,128.71,128.7,69.55232174]
[1744830048442,0.03,128.71,128.7,47.77616087]
[1744830048823,0.03,128.71,128.7,55.54616864]
[1744830049959,0.03,128.71,128.7,51.32232951]
[1744830050249,0.03,128.71,128.7,51.74881422]
[1744830050439,0.03,128.72,128.7,51.74881422]
[1744830050761,0.03,128.72,128.71,21.77616087]
[1744830051845,0.03,128.72,128.71,22.20264558]
[1744830052728,0.03,128.72,128.71,29.97204966]
[1744830052928,82.8,128.81,128.73,6.43108471]
[1744830053135,82.8,128.81,128.79,21.77616087]
[1744830053541,22.18,128.82,128.8,21.77616087]
[1744830053746,29.94315042,128.82,128.79,21.77616087]
[1744830054254,29.94315042,128.82,128.76,21.77616087]
[1744830054255,29.94315042,128.82,128.8,21.77616087]
[1744830054433,7.79181407,128.84,128.81,21.77616087]
[1744830054757,7.79181407,128.84,128.83,21.77616087]
[1744830054924,0.03,128.84,128.81,21.77616087]
[1744830055124,0.03,128.84,128.81,34.70359864]
[1744830055347,0.03,128.84,128.82,34.70359864]
[1744830055545,0.03,128.84,128.83,34.70359864]
[1744830055858,0.03,128.84,128.81,34.70359864]
[1744830056057,0.03,128.84,128.77,33.76578395]
[1744830056247,34.70359864,128.83,128.76,34.70359864]
[1744830056559,34.70359864,128.82,128.78,34.70359864]
[1744830056759,34.70359864,128.82,128.77,34.70359864]
[1744830056939,7.76457799,128.79,128.73,6.0046]
[1744830057550,7.76457799,128.79,128.76,34.70359864]
[1744830057762,7.76457799,128.79,128.73,6.0046]
[1744830057938,7.76457799,128.79,128.76,34.70359864]
[1744830058836,7.76397515,128.8,128.76,34.70359864]
[1744830059035,7.76355884,128.81,128.78,34.70359864]
[1744830059244,7.76355884,128.81,128.79,34.70359864]
[1744830059443,112.6427937,128.82,128.79,34.70359864]
[1744830059756,34.70359864,128.81,128.77,34.70359864]
[1744830059947,34.70359864,128.81,128.76,34.70359864]
[1744830060744,34.70359864,128.79,128.73,6.0046]
[1744830060958,22.08,128.82,128.78,34.70359864]
[1744830061142,22.08,128.82,128.81,34.70359864]
[1744830061457,90.56232344,128.83,128.81,34.70359864]
[1744830061649,7.79184258,128.84,128.81,34.70359864]
[1744830062369,0.03,128.84,128.82,34.70359864]
[1744830062542,0.03,128.84,128.83,34.70359864]
[1744830064150,0.03,128.87,128.83,42.75008897]
[1744830064474,0.03,128.87,128.86,76.15108199]
[1744830064773,0.03,128.87,128.83,7.76216719]
[1744830064959,0.03,128.87,128.86,34.70359864]
[1744830065270,0.03,128.87,128.85,34.70359864]
[1744830065565,0.03,128.87,128.86,34.70359864]
[1744830067042,0.03,128.87,128.86,42.46395872]
[1744830067564,0.03,128.87,128.86,42.89044343]
[1744830067952,0.03,128.87,128.86,34.70359864]
[1744830068145,0.03,128.87,128.83,34.70359864]
[1744830068342,0.03,128.87,128.8,7.76362683]
[1744830068343,34.73359864,128.87,128.8,7.76362683]
[1744830068550,34.73359864,128.87,128.82,34.70359864]
[1744830068848,34.73359864,128.87,128.83,34.70359864]
[1744830069162,42.49335653,128.87,128.83,34.70359864]
[1744830069555,7.78975789,128.87,128.84,34.70359864]
[1744830069866,7.78975789,128.87,128.86,34.70359864]
[1744830069867,0.03,128.87,128.86,34.70359864]
[1744830070872,0.03,128.87,128.86,34.84576021]
[1744830071074,0.03,128.87,128.86,49.12865872]
[1744830071259,0.03,128.87,128.86,34.70359864]
[1744830071460,0.03,128.87,128.86,42.46395872]
[1744830073368,0.03,128.87,128.86,77.59404207]
[1744830073566,0.03,128.94,128.89,26.0]
[1744830073767,0.03,128.94,128.93,34.70359864]
[1744830074149,0.03,128.94,128.93,69.40719728]
[1744830074351,0.03,128.94,128.93,69.83368199]
[1744830074764,0.18813323,128.94,128.93,69.83368199]
[1744830074971,0.18813323,128.94,128.93,69.40719728]
[1744830075272,0.15530676,128.98,128.96,0.14216157]
[1744830075571,2.78845001,128.99,128.98,77.1603373]
[1744830075754,2.78845001,128.99,128.98,42.45673866]
[1744830076260,0.15736686,129.01,128.99,0.42648471]
[1744830076579,0.15736686,129.01,128.99,69.83368199]
[1744830077174,0.15736686,129.01,128.99,69.40719728]
[1744830077681,0.15736686,129.01,128.99,77.15973623]
[1744830077847,0.15736686,129.01,128.99,77.58622094]
[1744830078046,0.15736686,129.01,129.0,69.40719728]
[1744830078379,0.15736686,129.01,128.97,7.7874]
[1744830078596,7.90886151,129.01,128.96,22.06]
[1744830078889,34.70359864,129.0,128.95,34.70359864]
[1744830079061,34.70359864,128.99,128.95,34.70359864]
[1744830079369,34.70359864,129.0,128.95,34.70359864]
[1744830079571,7.75253895,128.99,128.95,34.70359864]
[1744830080166,42.45613759,128.99,128.94,34.70359864]
[1744830080484,7.75253895,128.99,128.95,34.70359864]
[1744830080688,42.45613759,128.99,128.94,34.70359864]
[1744830081158,42.45613759,128.99,128.95,34.70359864]
[1744830081560,42.45553662,129.0,128.95,34.70359864]
[1744830081862,34.70359864,128.98,128.93,34.70359864]
[1744830082164,34.70359864,128.98,128.9,0.42648471]
[1744830082165,61.83538158,129.0,128.95,34.70359864]
[1744830082370,61.83538158,129.0,128.96,34.70359864]
[1744830082581,42.45553662,129.0,128.96,34.70359864]
[1744830082780,7.75193798,129.0,128.96,34.70359864]
[1744830082989,22.21736686,129.01,128.99,34.70359864]
[1744830083173,0.15736686,129.01,129.0,34.70359864]
[1744830083569,0.15736686,129.01,128.99,34.70359864]
[1744830083781,0.15736686,129.01,129.0,34.70359864]
[1744830084772,0.15736686,129.01,128.99,34.70359864]
[1744830084975,0.15736686,129.01,129.0,34.70359864]
[1744830086462,0.15736686,129.01,129.0,69.40719728]
[1744830086772,60.10665726,129.09,129.01,7.7513371]
[1744830086975,60.10665726,129.09,129.04,34.70359864]
[1744830087179,60.10665726,129.09,129.05,34.70359864]
[1744830087387,0.03,129.07,129.05,34.70359864]
[1744830087593,0.03,129.07,129.0,42.45529645]
[1744830087896,34.70359864,129.08,129.03,34.70359864]
[1744830088101,34.70359864,129.05,128.98,6.5838]
[1744830088402,34.70359864,129.03,128.98,34.70359864]
[1744830088696,21.96,129.04,129.01,34.70359864]
[1744830089074,34.70359864,129.03,128.98,34.70359864]
[1744830089274,34.70359864,129.02,128.97,34.70359864]
[1744830089811,34.70359864,129.01,128.94,49.01886142]
[1744830089983,34.70359864,128.99,128.94,34.70359864]
[1744830090371,34.70359864,128.99,128.95,34.70359864]
[1744830090666,34.70359864,129.0,128.95,34.70359864]
[1744830090897,7.75248394,129.0,128.96,34.70359864]
[1744830091100,19.37692862,129.02,128.92,7.75674837]
[1744830091101,7.75073631,129.02,128.99,34.70359864]
[1744830091399,55.59383297,129.07,129.01,34.70359864]
[1744830091694,55.59383297,129.07,129.03,34.70359864]
[1744830091895,55.59383297,129.07,129.02,34.70359864]
[1744830092197,7.7483341,129.06,129.03,34.70359864]
[1744830092784,7.74773378,129.07,129.03,34.70359864]
[1744830092979,34.70359864,129.05,129.01,34.70359864]
[1744830093171,34.70359864,129.04,129.0,34.70359864]
[1744830093500,61.82066688,129.07,129.02,34.70359864]
[1744830094576,61.82066688,129.07,129.03,34.70359864]
[1744830094577,7.74773378,129.07,129.03,34.70359864]
[1744830094795,0.15294154,129.05,129.04,34.70359864]
[1744830095281,0.15294154,129.05,128.99,7.75253895]
[1744830095477,0.15294154,129.05,129.03,34.70359864]
[1744830095673,0.15294154,129.05,129.04,34.70359864]
[1744830096174,0.15294154,129.05,129.03,34.70359864]
[1744830096670,0.15294154,129.05,129.04,34.70359864]
[1744830097075,0.15294154,129.05,129.01,7.75079884]
[1744830097277,0.15294154,129.05,129.03,34.70359864]
[1744830097678,0.15294154,129.05,129.04,34.70359864]
[1744830097881,0.15294154,129.05,129.03,34.70359864]
[1744830098093,0.15294154,129.05,129.04,34.70359864]
[1744830098272,0.15294154,129.05,129.03,34.70359864]
[1744830098672,0.15294154,129.05,129.04,34.70359864]
[1744830099080,0.15294154,129.05,129.03,34.70359864]
[1744830099280,0.15294154,129.05,129.02,34.70359864]
[1744830099480,0.15294154,129.05,129.03,34.70359864]
[1744830099895,34.70359864,129.04,128.97,21.96]
[1744830100105,34.70359864,129.04,128.99,34.70359864]
[1744830100293,34.85654018,129.05,129.01,34.70359864]
[1744830100476,0.15294154,129.05,129.04,34.70359864]
[1744830100796,0.15294154,129.05,129.02,34.70359864]
[1744830101174,34.70359864,129.04,128.99,34.70359864]
[1744830102804,42.45373426,129.03,128.98,34.70359864]
[1744830103398,42.45373426,129.03,128.99,34.70359864]
[1744830103799,7.75013562,129.03,128.99,34.70359864]